[Event "3rd Sharjah Challengers 2023"]
[Site "Sharjah"]
[Date "2023.05.17"]
[Round "1.7"]
[White "Salih, Akar Ali Salih"]
[Black "Nigmatov, Ortik"]
[Result "0-1"]
[ECO "C70"]
[WhiteElo "2200"]
[BlackElo "2438"]
[Annotator "TA"]
[PlyCount "130"]
[EventDate "2023.05.16"]
[EventType "swiss"]
[EventCountry "UAE"]
[SourceTitle "playchess.com"]
[Source "ChessBase"]
[SourceQuality "1"]
[TimeControl "5400+30"]

{[%evp 11,130,21,13,-10,37,10,10,-8,-11,-1,-10,-14,0,-14,-8,0,49,4,5,0,20,0,0,0,0,0,-7,-14,-14,-14,-14,-14,-8,-14,-14,-14,-14,-14,-14,-14,-10,-14,-14,-14,-8,-14,-7,-14,-7,-9,-3,-10,-10,-16,-17,-16,-16,-16,-16,-19,-29,-21,-4,-20,-6,-36,-34,-24,-26,-45,-45,-52,-42,-41,-37,-40,-33,-43,-14,-7,-8,-11,-10,-36,-36,-37,-36,-37,-4,-7,-3,-131,-124,-147,-135,-414,-391,-410,-400,-511,-475,-895,-888,-466,-821,-745,-236,-398,-252,-716,-694,-680,-662,-662,-636,-635,-631,-610,-585,-567,-547]} 1. e4 {[%emt 0:00:05]} e5 {[%emt 0:00:14]} 2. Nf3 {[%emt 0:00:21]} Nc6 {[%emt 0:00:14]} 3. Bb5 {[%emt 0:00:26]} a6 {[%emt 0:00:09]} 4. Ba4 {[%emt 0:00:06]} f5 {[%emt 0:00:10]} 5. d3 {[%emt 0:01:00]} fxe4 {[%emt 0:00:24]} 6. dxe4 {[%emt 0:00:08]} Nf6 {[%emt 0:00:07]} 7. Nc3 {[%emt 0:01:44] C70: Ruy Lopez: 3...a6 4 Ba4, Norwegian and Delayed Schliemann.} d6 {[%emt 0:02:20]} (7... Bb4 $11) 8. O-O {[%emt 0:04:23]} Be7 {[%emt 0:00:46]} 9. a3 {[%emt 0:11:52] The position is equal.} O-O {[%emt 0:02:30] [#]} 10. Bb3+ $146 {[%emt 0:04:28]} ({Predecessor:} 10. Qd3 Kh8 11. Bb3 Bg4 12. Ng5 Qe8 13. Ne6 Bxe6 14. Bxe6 Nd4 15. Ba2 Qh5 16. f3 {0-1 Shahade,G (2476)-Narayanan,S (2618) Titled Tuesday intern op 14th July blitz 2020 (4)}) 10... Kh8 {[%emt 0:00:08]} 11. Ng5 {[%emt 0:01:04]} Qe8 {[%emt 0:00:26] Dodges Nf7+. White should prevent ...Nd4.} 12. Ne6 {[%emt 0:04:12] Inhibits Nd4.} Bxe6 {[%emt 0:00:13]} 13. Bxe6 {[%emt 0:00:03]} Qg6 {[%emt 0:06:55]} (13... Nd4 $11 {might be stronger.} 14. Bc4 c6) 14. Bd5 {[%emt 0:19:18]} (14. Bf5 $5 {[%cal Rf5g6]} Qf7 15. Be3 $14) 14... Nxd5 {[%emt 0:03:33]} 15. Nxd5 {[%emt 0:00:25][%cal Bc3d5,Bd5e3,Be3f5][%mdl 32]} Bd8 {[%emt 0:00:08]} 16. f3 {[%emt 0:03:29]} (16. Qd3 {feels hotter.} Nd4 17. f4 c6 18. f5) 16... Nd4 {[%emt 0:01:53]} 17. c3 {[%emt 0:03:21]} Ne6 {[%emt 0:00:08]} 18. Ne3 {[%emt 0:07:20]} Bg5 {[%emt 0:04:16]} 19. Nf5 {[%emt 0:01:02]} Bxc1 {[%emt 0:00:46][%mdl 64] Remove Defender} 20. Rxc1 {[%emt 0:01:01][%cal Ba1c1,Bc1c2,Bc2d2,Bd2d1][%mdl 32]} a5 {[%emt 0:01:39]} 21. Rc2 {[%emt 0:06:11]} Nf4 {[%emt 0:10:23]} 22. Kh1 {[%emt 0:07:45]} a4 {[%emt 0:01:24]} 23. Rd2 {[%emt 0:05:32]} Qg5 {[%emt 0:03:30]} 24. Qe1 {[%emt 0:01:06]} Ne6 {[%emt 0:01:58]} 25. Rd1 {[%emt 0:02:51]} Ra5 {[%emt 0:01:15]} 26. Qg3 {[%emt 0:00:55]} Qf6 {[%emt 0:04:44]} 27. Rd2 {[%emt 0:00:44]} Rb5 {[%emt 0:02:35]} 28. Re1 {[%emt 0:01:44]} Nc5 {[%emt 0:10:32]} 29. Red1 {[%emt 0:02:52]} Qf7 {[%emt 0:05:38]} 30. h3 {[%emt 0:00:11]} Ne6 {[%emt 0:03:09]} 31. Qh4 {[%emt 0:02:47]} Nf4 {[%emt 0:02:53]} 32. Qe7 {[%emt 0:02:04]} (32. Kh2 {is more complex.} Rb3 33. Qg5 Ne6 34. Qe7) 32... Qxe7 {[%emt 0:02:23]} 33. Nxe7 {[%emt 0:00:04]} g6 {[%emt 0:00:18] Threatening ...c6.} 34. Nd5 {[%emt 0:00:49]} Nxd5 {[%emt 0:00:14]} 35. c4 {[%emt 0:00:20]} Rc5 {[%emt 0:00:59]} 36. cxd5 $11 {[%emt 0:00:02][%mdl 4096] Endgame KRR-KRR} Ra8 {[%emt 0:00:50]} 37. Re1 {[%emt 0:00:39]} Raa5 {[%emt 0:03:19]} 38. Ree2 {[%emt 0:00:11]} Rc1+ {[%emt 0:00:31]} 39. Kh2 {[%emt 0:00:02]} Rac5 {[%emt 0:01:33]} 40. Kg3 {[%emt 0:00:26]} Kg7 {[%emt 0:00:28]} 41. Kf2 {[%emt 0:03:07]} Kf6 {[%emt 0:00:23]} 42. Re1 {[%emt 0:00:08]} R1c4 {[%emt 0:02:14]} 43. h4 {[%emt 0:00:10]} Ke7 {[%emt 0:07:13]} 44. Ke2 {[%emt 0:00:32]} c6 {[%emt 0:05:50]} 45. dxc6 {[%emt 0:01:18]} bxc6 {[%emt 0:00:06]} 46. Red1 {[%emt 0:01:16]} Rc2 {[%emt 0:00:08]} 47. Rxc2 {[%emt 0:00:26]} Rxc2+ {[%emt 0:00:02] KR-KR} 48. Rd2 {[%emt 0:00:08]} Rc5 {[%emt 0:01:41]} 49. Kd3 {[%emt 0:01:11]} Rb5 {[%emt 0:05:06]} 50. Rc2 {[%emt 0:00:44]} Kd7 {[%emt 0:00:15]} 51. Kd2 {[%emt 0:02:18] [#]} (51. Rc4 $11) 51... d5 $1 $17 {[%emt 0:00:43]} 52. exd5 {[%emt 0:00:09]} cxd5 {[%emt 0:00:05][%cal Bc6d5,Bd5d4][%mdl 32]} 53. b4 $2 {[%emt 0:01:34][%mdl 8192] Loses the game.} (53. Kc1 $17) 53... axb3 $19 {[%emt 0:00:10]} 54. Rb2 {[%emt 0:00:04]} Kc6 {[%emt 0:05:44]} 55. Kc3 {[%emt 0:00:11]} d4+ {[%emt 0:00:09]} 56. Kc4 {[%emt 0:00:15]} (56. Kd3 $142 Kc5 57. Rb1) 56... Rc5+ {[%emt 0:00:11]} 57. Kxb3 {[%emt 0:00:27]} Kd5 {[%emt 0:00:00]} 58. Rd2 {[%emt 0:01:43] Prevents d3.} Rc7 $2 {[%emt 0:00:12]} (58... e4 59. fxe4+ Kxe4 60. Re2+ Kf4) 59. a4 {[%emt 0:00:44]} (59. Kb2) 59... Rb7+ {[%emt 0:02:15]} 60. Ka3 $2 {[%emt 0:00:01]} (60. Kc2 Rb4 61. a5) 60... Kc4 {[%emt 0:00:06] Black is clearly winning.} 61. Rc2+ {[%emt 0:00:41] [#]} Kd3 $1 {[%emt 0:00:01]} 62. Rc5 {[%emt 0:00:14]} e4 {[%emt 0:02:21]} 63. fxe4 {[%emt 0:00:05]} Kxe4 {[%emt 0:00:13] White must now prevent ...d3.} 64. a5 {[%emt 0:00:09]} d3 {[%emt 0:00:06] ( -> ...d2)} 65. a6 {[%emt 0:01:27]} Ra7 {[%emt 0:00:05] Weighted Error Value: White=0.33/Black=0.13 (very precise)} 0-1

[Event "3rd Sharjah Challengers 2023"]
[Site "Sharjah"]
[Date "2023.05.17"]
[Round "1.8"]
[White "Vandenbussche, Thibaut"]
[Black "Ammar, Sedrani"]
[Result "1-0"]
[ECO "B12"]
[WhiteElo "2437"]
[BlackElo "2197"]
[Annotator "TA"]
[PlyCount "63"]
[EventDate "2023.05.16"]
[EventType "swiss"]
[EventCountry "UAE"]
[SourceTitle "playchess.com"]
[Source "ChessBase"]
[SourceQuality "1"]
[TimeControl "5400+30"]

{[%evp 14,63,10,18,47,48,127,136,214,202,205,172,179,174,178,176,162,177,187,187,175,212,212,160,181,189,410,207,342,287,472,535,526,510,565,365,1226,1209,1208,1210,1436,1443,1417,1387,1407,1399,1300,1287,29993,29994,29995,29996]} 1. e4 {[%emt 0:00:03]} c6 {[%emt 0:00:07]} 2. d4 {[%emt 0:00:10]} d5 {[%emt 0:00:07]} 3. e5 {[%emt 0:00:05]} Bf5 {[%emt 0:00:04]} 4. Nc3 {[%emt 0:00:09]} e6 {[%emt 0:01:51]} 5. g4 {[%emt 0:00:12]} Bg6 {[%emt 0:00:08]} 6. Nge2 {[%emt 0:00:07]} c5 {[%emt 0:04:16]} 7. h4 {[%emt 0:00:10]} h6 {[%emt 0:03:25]} 8. Be3 {[%emt 0:04:15]} Nd7 {[%emt 0:05:23] B12: Caro-Kann: Advance Variation.} 9. f4 {[%emt 0:06:15][%cal Bf2f4,Bf4f5][%mdl 32]} cxd4 {[%emt 0:31:19]} (9... Ne7 $14) 10. Nxd4 $16 {[%emt 0:00:30] Strongly threatening f5.} Bc5 {[%emt 0:00:18] [#]} (10... Be7 $16) 11. f5 $1 $18 {[%emt 0:06:08] [#]} exf5 $146 {[%emt 0:11:57]} ({Predecessor:} 11... Bxd4 12. Qxd4 exf5 13. Nxd5 Ne7 14. Nxe7 Qxe7 15. O-O-O Nxe5 16. Bb5+ Nc6 17. Rhe1 O-O 18. Bxc6 bxc6 19. Bxh6 {1-0 Brkic,A (2372)-Tomic,J Zadar op 2002 (1)}) 12. e6 {[%emt 0:01:05]} (12. Nxd5 Ne7 13. e6 (13. Nxe7 Qxe7 14. gxf5 Qxe5 $17) 13... Nxd5 $17) (12. Nxf5 Bxe3 13. Nxe3 Ne7 $11) 12... Ndf6 {[%emt 0:02:40]} 13. Bb5+ {[%emt 0:13:57]} (13. gxf5 $6 Bxd4 14. Qxd4 Bxf5 $16) (13. Nxf5 $2 Bxe3 14. Nxe3 (14. exf7+ $2 Bxf7 15. Nxe3 d4 $19) 14... d4 $19) 13... Kf8 {[%emt 0:00:11]} 14. gxf5 {[%emt 0:01:53]} (14. Nxf5 $2 Bxe3 15. Nxe3 d4 $19) 14... Bxd4 {[%emt 0:01:55]} 15. Qxd4 {[%emt 0:00:17]} (15. Bxd4 $6 Bxf5 16. exf7 Qe7+ 17. Be2 Qxf7 $16) 15... Bxf5 {[%emt 0:00:14]} 16. exf7 {[%emt 0:01:05]} Kxf7 {[%emt 0:02:10]} 17. O-O-O {[%emt 0:00:21] Hoping for Qf4.} Ne7 {[%emt 0:00:11]} 18. Rhg1 {[%emt 0:05:48][%mdl 1024] Prevents Bg4. Qe5 is the strong threat. White has strong compensation. Black is weak on the dark squares} a6 {[%emt 0:10:05]} 19. Ba4 {[%emt 0:00:21] Threatens to win with Qe5. This pair of bishops is nice.} Be6 $2 {[%emt 0:00:59]} (19... Rc8 20. Rdf1 Qd6) 20. Bf4 {[%emt 0:09:35]} (20. Rdf1 Nf5 21. Qd3 (21. Qb4 b5 $14) (21. Qe5 Nxe3 22. Qxe3 Qd6 $18) 21... g6 $18) (20. Qe5 $142) 20... b5 {[%emt 0:05:35] [#]} (20... Nf5 $142 21. Qe5 Qb8) 21. Bb3 $1 {[%emt 0:00:09]} Re8 $2 {[%emt 0:00:19]} (21... Rg8 22. Qf2 (22. Rde1 Qd7 $18) 22... b4) 22. Qf2 {[%emt 0:05:09]} (22. Rde1 Qd7 23. Qf2 (23. Qe5 Nc6 $11) 23... Kg8 24. Bxh6 Ng4 $18) 22... Rc8 {[%emt 0:10:54]} 23. Be5 {[%emt 0:02:53][%cal Og1g7] White wants to mate with Rxg7+!} Rf8 {[%emt 0:03:41]} 24. Ne4 {[%emt 0:05:04]} Nf5 {[%emt 0:01:26] Prevents Nd6+} (24... dxe4 25. Rxd8 Rcxd8 26. Bxf6 gxf6) 25. Bxf6 {[%emt 0:02:45][%mdl 64] Remove Defender} ({Stronger than} 25. Qg2 Nxe4 26. Bxg7 Qd6 27. Bxf8 (27. Rdf1 $2 Ke7 $19) 27... Rxf8 $17) 25... gxf6 {[%emt 0:00:02] [#]} 26. Bxd5 $1 {[%emt 0:01:04][%mdl 576] Deflection} Qc7 {[%emt 0:03:19]} (26... Rxc2+ 27. Qxc2) 27. Bxe6+ {[%emt 0:05:47]} (27. Qxf5 $2 Qxc2#) 27... Kxe6 {[%emt 0:00:02]} 28. Nc3 {[%emt 0:01:12] Rge1+ would kill now.} Qc5 {[%emt 0:01:03]} 29. Rge1+ {[%emt 0:01:48]} Kf7 {[%emt 0:00:07]} 30. Rd7+ {[%emt 0:00:22]} Kg8 {[%emt 0:00:09]} 31. Qg2+ {[%emt 0:00:35]} Kh8 {[%emt 0:00:03]} 32. Qg6 {[%emt 0:00:29] Black got outplayed after the opening. A superb game by Vandenbussche.   Weighted Error Value: White=0.38/Black=0.73} 1-0

[Event "3rd Sharjah Challengers 2023"]
[Site "Sharjah"]
[Date "2023.05.17"]
[Round "1.9"]
[White "Koridze, Lile"]
[Black "Saydaliev, Saidakbar"]
[Result "0-1"]
[ECO "E01"]
[WhiteElo "2191"]
[BlackElo "2434"]
[Annotator "TA"]
[PlyCount "88"]
[EventDate "2023.05.16"]
[EventType "swiss"]
[EventCountry "UAE"]
[SourceTitle "playchess.com"]
[Source "ChessBase"]
[SourceQuality "1"]
[TimeControl "5400+30"]

{[%evp 16,88,49,20,35,18,18,12,14,25,25,25,17,24,25,15,29,9,13,0,0,0,12,13,31,22,26,25,24,18,63,46,68,50,100,16,24,22,16,-91,-71,-140,-119,-344,-337,-318,-237,-259,-237,-255,-253,-252,-254,-246,-243,-387,-403,-516,-510,-460,-447,-668,-668,-1116,-1094,-1253,-1107,-1344,-1307,-1532,-1549,-1333,-1232,-1406,-1399]} 1. d4 {[%emt 0:00:04]} Nf6 {[%emt 0:00:22]} 2. c4 {[%emt 0:00:06]} e6 {[%emt 0:00:07]} 3. Nf3 {[%emt 0:00:05]} d5 {[%emt 0:01:46]} 4. g3 {[%emt 0:00:11]} dxc4 {[%emt 0:00:08]} 5. Bg2 {[%emt 0:00:13]} Nbd7 {[%emt 0:00:06]} 6. Qc2 {[%emt 0:05:26]} c6 {[%emt 0:14:15]} 7. Qxc4 {[%emt 0:07:10]} Bd6 {[%emt 0:00:36]} 8. O-O {[%emt 0:02:34]} O-O {[%emt 0:00:18]} 9. Nc3 {[%emt 0:04:09]} Qe7 {[%emt 0:04:54] E01: Catalan: Early deviations.} 10. Bf4 {[%emt 0:07:20]} e5 {[%emt 0:01:33]} 11. dxe5 {[%emt 0:04:16]} Nxe5 {[%emt 0:00:36] The position is equal.} 12. Nxe5 {[%emt 0:03:53]} Bxe5 {[%emt 0:00:11]} 13. Bxe5 {[%emt 0:04:53]} Qxe5 {[%emt 0:00:02] [#]} 14. Rfd1 $146 {[%emt 0:05:57]} ({Predecessor:} 14. e4 Be6 15. Qb4 Qc7 16. h3 a5 17. Qc5 Nd7 18. Qe3 a4 19. Rac1 Qb6 20. Qe2 {½-½ Carstensen,J (2352)-Przybylski,W (2354) Wch Blitz 9th 2015 (13)}) 14... Be6 {[%emt 0:06:29]} 15. Qb4 {[%emt 0:01:39]} Qc7 {[%emt 0:01:08]} 16. Rac1 {[%emt 0:03:40]} Rfd8 {[%emt 0:02:19]} 17. Qa3 {[%emt 0:07:44]} a5 {[%emt 0:08:31]} 18. Qc5 {[%emt 0:07:53]} Nd7 {[%emt 0:12:33]} 19. Qe3 {[%emt 0:02:51]} Nb6 {[%emt 0:02:54]} 20. Rxd8+ {[%emt 0:04:34]} Qxd8 {[%emt 0:00:55]} (20... Rxd8 {feels hotter.} 21. Nb5 Qd7 22. Qxb6 cxb5 23. Qxa5 Qd2) 21. Rd1 {[%emt 0:00:41]} Qc7 {[%emt 0:00:37]} 22. Qd4 {[%emt 0:02:49]} a4 {[%emt 0:01:43]} 23. Qc5 {[%emt 0:06:43]} Nd7 {[%emt 0:08:36]} 24. Qe7 {[%emt 0:03:07]} h6 {[%emt 0:07:33] [#]} ({Better is} 24... Qb6 $14) 25. Rd6 {[%emt 0:05:34]} (25. a3 $1 $16) 25... a3 $11 {[%emt 0:04:56]} 26. b4 {[%emt 0:02:31]} Qc8 {[%emt 0:05:36]} 27. Rxe6 {[%emt 0:04:24]} (27. h4 $1 $11) 27... fxe6 $17 {[%emt 0:00:06]} 28. Bh3 {[%emt 0:01:45]} (28. Qxe6+ $142 Kh8 29. Bf3) 28... Nf8 {[%emt 0:01:33]} 29. Ne4 $2 {[%emt 0:00:23] This costs White the game.} (29. Bg4 $17) 29... Qd8 $19 {[%emt 0:04:15]} 30. Qxb7 {[%emt 0:01:07]} Rb8 {[%emt 0:00:17]} 31. Qxc6 {[%emt 0:00:24]} Qd1+ {[%emt 0:00:09]} 32. Kg2 {[%emt 0:00:46]} Qd5 {[%emt 0:05:07]} 33. Qxd5 {[%emt 0:00:57]} exd5 {[%emt 0:00:01][%mdl 4096] Endgame KRN-KBN} 34. Nc3 {[%emt 0:00:19]} Rxb4 {[%emt 0:00:01]} 35. Bf5 {[%emt 0:01:05]} (35. Kf1 {only move.}) 35... Rb2 {[%emt 0:03:00]} 36. Bd3 {[%emt 0:00:37]} Nd7 {[%emt 0:00:35] Black is clearly winning.} 37. Nxd5 {[%emt 0:00:28]} Ne5 {[%emt 0:00:31][%cal Oe5d3] ...Nxd3! is the strong threat.} 38. Ba6 {[%emt 0:00:27]} (38. Be4 $142 Rxa2 39. Nc3) 38... Rxa2 {[%emt 0:00:33] aiming for ...Rb2.} 39. f4 {[%emt 0:00:20] [#]} Rb2 $1 {[%emt 0:00:52] And now ...a2 would win.} 40. fxe5 {[%emt 0:00:11]} (40. Nc3 Rc2) 40... a2 {[%emt 0:00:01]} 41. e6 {[%emt 0:00:33]} a1=Q {[%emt 0:00:41]} (41... a1=B $2 42. Bd3 $18) 42. e7 {[%emt 0:00:30]} Rb8 {[%emt 0:00:15]} ({Not} 42... Qxa6 43. e8=Q+ Kh7 44. Nf4 $17) 43. Bc4 {[%emt 0:00:39]} Kh8 {[%emt 0:01:01]} 44. Nf4 {[%emt 0:00:15]} g5 {[%emt 0:00:08] Weighted Error Value: White=0.82/Black=0.16 (very precise)} 0-1

[Event "3rd Sharjah Challengers 2023"]
[Site "Sharjah"]
[Date "2023.05.18"]
[Round "2.1"]
[White "Kanter, Eduard"]
[Black "Sivuk, Vitaly"]
[Result "0-1"]
[ECO "E06"]
[WhiteElo "2367"]
[BlackElo "2489"]
[Annotator "TA"]
[PlyCount "98"]
[EventDate "2023.05.16"]
[EventType "swiss"]
[EventCountry "UAE"]
[SourceTitle "playchess.com"]
[Source "ChessBase"]
[SourceQuality "1"]
[TimeControl "5400+30"]

{[%evp 16,98,19,0,0,0,0,-18,-18,-74,-86,-69,-68,-214,-216,-225,-225,-214,-212,-213,-226,-218,-227,-227,-228,-224,-227,-232,-210,-316,-254,-249,-271,-287,-281,-278,-249,-249,-247,-243,-245,-241,-241,-242,-242,-238,-234,-298,-293,-308,-308,-359,-358,-345,-344,-418,-379,-482,-475,-447,-449,-496,-482,-475,-414,-399,-404,-731,-718,-857,-851,-968,-989,-937,-847,-1254,-896,-856,-714,-767,-760,-987,-953,-4570,-4570]} 1. d4 {[%emt 1:31:00]} Nf6 {[%emt 1:31:00]} 2. c4 {[%emt 0:00:30]} e6 {[%emt 0:00:30]} 3. Nf3 {[%emt 0:00:30]} d5 {[%emt 0:00:30]} 4. g3 {[%emt 0:00:30]} Be7 {[%emt 0:00:30]} 5. Bg2 {[%emt 0:00:30]} O-O {[%emt 0:00:30]} 6. Nc3 {[%emt 0:00:30]} Nbd7 {[%emt 0:00:30][%cal Bb8d7,Bd7e5,Be5c4][%mdl 32]} 7. b3 {[%emt 0:00:30]} dxc4 $1 {[%emt 0:00:30][%mdl 4] 7...dxc4 is the modern continuation.} 8. bxc4 {[%emt 0:00:30]} c5 {[%emt 0:00:30]} 9. O-O {[%emt 0:00:30]} (9. e3 {with more complications.} cxd4 10. exd4 e5 11. dxe5 Qa5 12. exf6 Qxc3+ 13. Bd2) 9... cxd4 {[%emt 0:00:30] E06: Closed Catalan: Early deviations.} 10. Nxd4 {[%emt 0:00:30]} Ne5 {[%emt 0:00:30]} 11. Rb1 {[%emt 0:00:30]} (11. Bf4 $5 {[%cal Rf4e5]} Ng6 12. Bg5 $11) 11... Nxc4 {[%emt 0:00:30] The position is equal.} 12. Bxb7 {[%emt 0:00:30]} (12. Qd3 $11 Ne5 13. Qd1) 12... Bxb7 $17 {[%emt 0:00:30]} 13. Rxb7 {[%emt 0:00:30] Black must now prevent Nc6.} Bc5 {[%emt 0:00:30]} 14. Ndb5 {[%emt 0:00:30] [#]} ({White should try} 14. e3 $15) 14... Na5 $1 $19 {[%emt 0:00:30]} 15. Rc7 {[%emt 0:00:30]} Bb6 {[%emt 0:00:30]} 16. Qxd8 {[%emt 0:00:30]} Rfxd8 {[%emt 0:00:30]} 17. Re7 {[%emt 0:00:30] [#]} a6 $1 {[%emt 0:00:30]} 18. Na4 {[%emt 0:00:30]} Bxf2+ {[%emt 0:00:30] [#]} 19. Rxf2 $146 {[%emt 0:00:30] Nbc3 would be deadly.} ({Predecessor:} 19. Kxf2 axb5 20. Nc3 b4 21. Nb5 Nd5 22. Ra7 Rxa7 23. Nxa7 Ra8 24. Nb5 Nc4 25. Bf4 Rxa2 {0-1 Sjugirov,S (2662)-Shimanov,A (2587) St Petersburg rapid 2019 (8)}) 19... axb5 {[%emt 0:00:30]} 20. Nb2 {[%emt 0:00:30]} Nc6 {[%emt 0:00:30]} 21. Rb7 {[%emt 0:00:30]} Rxa2 {[%emt 0:00:30]} 22. Rxb5 {[%emt 0:00:30]} (22. Nd3 $142) 22... Nd4 {[%emt 0:00:30]} 23. Rb7 {[%emt 0:00:30]} Rc8 {[%emt 0:00:30]} 24. Bg5 {[%emt 0:00:30]} Ne4 {[%emt 0:00:30][%csl LRf2,LRg5]} 25. Rfxf7 {[%emt 0:00:30]} Nf5 {[%emt 0:00:30] Excellent horsemanship.} ({Weaker is} 25... Nxe2+ 26. Kf1 Nxg5 27. Rxg7+ Kf8 28. Rgd7 $17) 26. Bf4 {[%emt 0:00:30] [#]} Rxb2 $1 {[%emt 0:00:30][%mdl 576] Deflection} 27. Rxg7+ {[%emt 0:00:30]} Nxg7 {[%emt 0:00:30]} 28. Rxb2 {[%emt 0:00:30]} Nh5 {[%emt 0:00:30]} 29. Be5 {[%emt 0:00:30]} Rc5 {[%emt 0:00:30]} 30. Bd4 {[%emt 0:00:30]} Rd5 {[%emt 0:00:30]} 31. Be3 {[%emt 0:00:30]} Nhf6 {[%emt 0:00:30]} 32. Kg2 {[%emt 0:00:30]} Kf7 {[%emt 0:00:30]} 33. h3 {[%emt 0:00:30]} h5 {[%emt 0:00:30]} 34. Rb7+ {[%emt 0:00:30]} Kg6 {[%emt 0:00:30]} 35. Rb3 {[%emt 0:00:30]} Ra5 {[%emt 0:00:30]} 36. Bd4 {[%emt 0:00:30]} e5 {[%emt 0:00:30]} 37. Bb2 {[%emt 0:00:30]} Kf5 {[%emt 0:00:30]} 38. Rf3+ {[%emt 0:00:30]} Ke6 {[%emt 0:00:30]} 39. Rb3 {[%emt 0:00:30]} Nd5 {[%emt 0:00:30]} 40. Rb8 {[%emt 0:00:30]} Nd6 {[%emt 0:00:30] Inhibits Re8+.} 41. e4 {[%emt 0:00:30]} (41. g4 $142) 41... Nxe4 {[%emt 0:00:30] Black is clearly winning.} 42. Re8+ {[%emt 0:00:30]} Ne7 {[%emt 0:00:30]} 43. g4 {[%emt 0:00:30]} Ra2 {[%emt 0:00:30]} 44. Rb8 {[%emt 0:00:30]} h4 {[%emt 0:00:30] And now ...Nd5 would win.} 45. Kf3 {[%emt 0:00:30]} Ng5+ {[%emt 0:00:30]} 46. Ke3 {[%emt 0:00:30]} Ra6 {[%emt 0:00:30]} 47. Rh8 {[%emt 0:00:30]} Ng6 {[%emt 0:00:30]} (47... Nxh3 $2 48. Rh6+ (48. Rxh4 $2 {is the wrong capture.} Nd5+ 49. Kd2 Ng5 $19) 48... Kd5 49. Rxa6 $18) 48. Rh6 {[%emt 0:00:30]} Kf6 {[%emt 0:00:30]} 49. Kd3 {[%emt 0:00:30]} Kg7 {[%emt 0:00:30] White did not feel at home in the position after the opening.   Weighted Error Value: White=0.49/Black=0.22 (precise)} 0-1

[Event "3rd Sharjah Challengers 2023"]
[Site "Sharjah"]
[Date "2023.05.18"]
[Round "2.2"]
[White "Rios, Cristhian Camilo"]
[Black "Farahat, Ali"]
[Result "1-0"]
[ECO "D85"]
[WhiteElo "2469"]
[BlackElo "2361"]
[Annotator "TA"]
[PlyCount "63"]
[EventDate "2023.05.16"]
[EventType "swiss"]
[EventCountry "UAE"]
[SourceTitle "playchess.com"]
[Source "ChessBase"]
[SourceQuality "1"]
[TimeControl "5400+30"]

{[%evp 18,63,0,0,23,24,24,11,2,3,12,0,3,0,84,81,76,81,80,71,258,265,272,266,274,274,270,266,250,233,228,227,316,239,402,402,377,249,386,410,493,483,656,635,913,846,921,357]} 1. d4 {[%emt 0:00:04]} Nf6 {[%emt 0:00:12]} 2. c4 {[%emt 0:00:23]} g6 {[%emt 0:00:47]} 3. Nc3 {[%emt 0:00:30]} d5 {[%emt 0:01:01]} 4. cxd5 {[%emt 0:01:07]} Nxd5 {[%emt 0:00:10]} 5. e4 {[%emt 0:00:23]} Nxc3 {[%emt 0:00:16]} 6. bxc3 {[%emt 0:00:10]} Bg7 {[%emt 0:00:43]} 7. Nf3 {[%emt 0:00:18]} c5 {[%emt 0:01:25]} 8. h3 {[%emt 0:00:58]} Nc6 {[%emt 0:02:33]} 9. Be3 {[%emt 0:01:28]} O-O {[%emt 0:05:28]} 10. Be2 {[%emt 0:00:46]} (10. dxc5 Bxc3+ 11. Bd2 Bxa1 12. Qxa1 e5 $19) 10... f5 {[%emt 0:03:53] D85: Exchange Grünfeld: Unusual White 7th moves and lines with 7 Nf3.} 11. Bc4+ {[%emt 0:00:49]} ({Don't play} 11. dxc5 Bxc3+ 12. Bd2 Bxa1 13. Qxa1 Be6 $17) 11... Kh8 $1 {[%emt 0:01:51]} 12. O-O {[%emt 0:00:15]} cxd4 {[%emt 0:05:55] The position is equal.} 13. cxd4 {[%emt 0:00:54][%cal Od4d5]} f4 {[%emt 0:02:17]} 14. Bd2 {[%emt 0:01:49] aiming for Bc3.} Nxd4 {[%emt 0:03:27]} 15. Bc3 {[%emt 0:01:35][%cal Rc3d4]} e5 {[%emt 0:10:42] [#]} (15... Nxf3+ $11 {remains equal.} 16. Qxf3 Bd7) 16. Bb4 $146 {[%emt 0:05:43]} ({Predecessor:} 16. Bxd4 exd4 17. Bd5 Rb8 18. Rc1 Qb6 19. Rb1 Qc5 20. Qd3 Qc3 21. Qb5 b6 22. Rfc1 Qa3 23. Rc7 Qa6 24. Qb4 b5 25. Rxg7 Qf6 26. Rxa7 {1-0 Quintiliano Pinto,R (2469)-Zubov,A (2598) Speed Chess GP2 blitz 2021 (9)}) 16... Nxf3+ {[%emt 0:06:02]} 17. Qxf3 {[%emt 0:00:12] And now Rfd1 would win.} Rf6 {[%emt 0:01:07]} 18. Rfd1 $1 {[%emt 0:06:09] White is more active.} Qe8 {[%emt 0:03:31] [#]} (18... Qc7 $16 {is a better defense.}) 19. Bb5 $1 $18 {[%emt 0:04:38][%mdl 576] Deflection} Qg8 {[%emt 0:11:42] [#]} (19... Qxb5 $2 20. Rd8+ $18) 20. Be7 $1 {[%emt 0:01:41] Black must now prevent Rd8.} Be6 {[%emt 0:00:12]} 21. Bxf6 {[%emt 0:08:43]} Bxf6 {[%emt 0:00:04]} 22. a4 {[%emt 0:00:18]} Qf7 {[%emt 0:01:53]} 23. Qd3 {[%emt 0:08:26]} Rd8 {[%emt 0:03:03]} 24. Qa3 {[%emt 0:00:39]} a6 {[%emt 0:02:16]} 25. Be2 {[%emt 0:00:47] Hoping for Rxd8+.} Kg7 $2 {[%emt 0:01:50]} (25... Re8 26. Qb2 Kg7) 26. Rxd8 {[%emt 0:02:26]} Bxd8 {[%emt 0:00:04]} 27. Qc5 {[%emt 0:00:11] Threatens to win with Rb1.} Kh6 {[%emt 0:06:12]} (27... Qc7 $142 28. Qxc7+ Bxc7) 28. Rb1 {[%emt 0:00:48]} ({Less strong is} 28. Qxe5 Bf6 29. Qxf4+ g5 $18) 28... Bf6 {[%emt 0:01:13]} 29. Qd6 {[%emt 0:02:33] White is clearly winning.} Bg7 {[%emt 0:01:58]} 30. Rb6 {[%emt 0:01:05]} f3 {[%emt 0:00:55]} 31. Bxf3 {[%emt 0:01:04]} (31. Qxe6 $2 {too greedy.} Qxe6 32. Rb2 fxe2 $19) 31... Bxh3 {[%emt 0:04:58]} 32. Qd2+ $2 {[%emt 0:00:18] White took control after the opening.   Weighted Error Value: White=0.11 (very precise) /Black=0.58} (32. Rxb7 Qf6 33. Qd2+ Qf4 34. Qxf4+ exf4 35. gxh3) 1-0